{"text_format":"1","workbook":"xlsx","n_sheets":1,"sheets":["FCT_1001_412"],"not_rendered":{"charts":0,"images":2,"macros":1,"external_links":2,"defined_names":48,"comments":1,"pivot_tables":0},"unopened":[],"bounds":{"document_bytes":16777216,"sheet_cells":100000,"rows_first":2000,"rows_last":500,"rows_between":2000,"halvings":0,"cell_chars":16384,"cell_head_chars":4096},"cells_cut":0,"cells_raw":0,"read":"whole","date_system":"1900"}

{"sheet":"FCT_1001_412","index":0,"n_rows":260,"n_cols":38,"rows_kept":260,"cut":false,"hidden":false,"merged":[[257,3,257,18],[258,3,258,18],[259,3,267,18],[268,3,268,18],[250,3,250,19],[250,20,250,21],[250,28,250,29],[252,10,254,10],[252,11,254,11],[255,3,255,21],[245,3,245,5],[245,6,245,9],[245,10,245,13],[245,14,245,18],[248,3,248,21],[249,3,249,21],[242,3,242,9],[242,10,242,18],[243,3,243,9],[243,10,243,18],[244,3,244,5],[244,6,244,9],[244,10,244,13],[244,14,244,18],[227,3,227,18],[228,3,228,18],[238,3,238,18],[240,3,240,13],[240,14,241,18],[241,3,241,13],[145,3,145,4],[145,5,145,16],[146,3,146,18],[150,3,150,35],[150,36,150,37],[151,3,151,35],[142,3,142,4],[142,5,142,16],[143,3,143,4],[143,5,143,16],[144,3,144,4],[144,5,144,16],[137,3,137,18],[139,24,139,36],[140,3,140,18],[140,24,140,36],[141,3,141,16],[141,17,141,18],[135,3,135,4],[135,5,135,6],[135,7,135,16],[136,3,136,4],[136,5,136,6],[136,7,136,16],[132,3,132,16],[132,17,132,18],[133,3,133,4],[133,5,133,6],[133,7,133,16],[134,3,134,4],[134,5,134,6],[134,7,134,16],[128,3,128,4],[128,5,128,7],[128,8,128,10],[128,11,128,15],[129,3,129,18],[131,3,131,18],[123,3,123,18],[125,3,125,18],[126,3,126,16],[126,17,126,18],[127,3,127,4],[127,5,127,7],[127,8,127,10],[127,11,127,15],[121,3,121,5],[121,6,121,8],[121,9,121,12],[121,13,121,16],[122,3,122,5],[122,6,122,8],[122,9,122,12],[122,13,122,16],[119,3,119,16],[119,17,119,18],[120,3,120,5],[120,6,120,8],[120,9,120,12],[120,13,120,16],[114,3,114,8],[114,9,114,16],[115,3,115,8],[115,9,115,16],[116,3,116,18],[118,3,118,18],[111,3,111,8],[111,9,111,16],[112,3,112,8],[112,9,112,16],[113,3,113,8],[113,9,113,16],[108,3,108,8],[108,9,108,16],[109,3,109,8],[109,9,109,16],[110,3,110,8],[110,9,110,16],[103,3,103,4],[103,5,103,16],[104,3,104,18],[106,3,106,18],[107,3,107,16],[107,17,107,18],[98,3,98,18],[100,3,100,18],[101,3,101,16],[101,17,101,18],[102,3,102,4],[102,5,102,16],[96,3,96,4],[96,6,96,7],[96,8,96,9],[96,10,96,13],[97,3,97,4],[97,6,97,7],[97,8,97,9],[97,10,97,13],[91,3,91,4],[91,6,91,16],[92,3,92,18],[94,3,94,18],[95,3,95,13],[95,14,95,16],[95,17,95,18],[88,3,88,4],[88,6,88,16],[89,3,89,4],[89,6,89,16],[90,3,90,4],[90,6,90,16],[85,3,85,4],[85,6,85,16],[85,23,85,27],[86,3,86,4],[86,6,86,16],[87,3,87,4],[87,6,87,16],[80,3,80,18],[82,3,82,18],[83,3,83,16],[83,17,83,18],[84,3,84,4],[84,6,84,16],[78,3,78,4],[78,5,78,6],[78,8,78,14],[78,15,78,16],[79,3,79,4],[79,5,79,6],[79,8,79,14],[79,15,79,16],[76,3,76,4],[76,5,76,6],[76,8,76,14],[76,15,76,16],[77,3,77,4],[77,5,77,6],[77,8,77,14],[77,15,77,16],[74,3,74,4],[74,5,74,6],[74,8,74,14],[74,15,74,16],[75,3,75,4],[75,5,75,6],[75,8,75,14],[75,15,75,16],[72,3,72,4],[72,5,72,6],[72,8,72,14],[72,15,72,16],[73,3,73,4],[73,5,73,6],[73,8,73,14],[73,15,73,16],[68,3,68,4],[68,5,68,6],[68,8,68,14],[68,15,68,16],[71,3,71,4],[71,5,71,6],[71,8,71,14],[71,15,71,16],[64,3,64,4],[64,5,64,14],[64,15,64,16],[67,3,67,4],[67,5,67,14],[67,15,67,16],[62,3,62,4],[62,5,62,6],[62,8,62,14],[62,15,62,16],[63,3,63,4],[63,5,63,6],[63,8,63,14],[63,15,63,16],[60,3,60,4],[60,5,60,6],[60,8,60,14],[60,15,60,16],[61,3,61,4],[61,5,61,6],[61,8,61,14],[61,15,61,16],[58,3,58,4],[58,5,58,6],[58,8,58,14],[58,15,58,16],[59,3,59,4],[59,5,59,6],[59,8,59,14],[59,15,59,16],[51,3,51,18],[52,3,52,18],[53,3,53,18],[54,3,54,16],[54,17,54,18],[55,3,55,4],[55,5,55,6],[55,8,55,14],[55,15,55,16],[46,3,46,4],[46,5,46,16],[47,3,47,4],[47,5,47,16],[48,3,48,18],[50,3,50,18],[41,3,41,4],[41,5,41,16],[42,3,42,18],[44,3,44,18],[45,3,45,16],[45,17,45,18],[38,3,38,4],[38,5,38,16],[39,3,39,4],[39,5,39,16],[40,3,40,4],[40,5,40,16],[33,3,33,4],[33,5,33,16],[34,3,34,18],[36,3,36,18],[37,3,37,16],[37,17,37,18],[30,3,30,4],[30,5,30,16],[31,3,31,4],[31,5,31,16],[32,3,32,4],[32,5,32,16],[27,3,27,4],[27,5,27,16],[28,3,28,4],[28,5,28,16],[29,3,29,4],[29,5,29,16],[21,3,21,18],[22,3,22,18],[24,3,24,18],[25,3,25,16],[25,17,25,18],[26,3,26,4],[26,5,26,16],[13,3,13,18],[14,3,14,18],[16,3,16,18],[17,3,17,18],[19,3,19,18],[20,3,20,18],[4,3,4,18],[5,3,5,18],[7,3,7,18],[8,3,8,18],[10,3,10,18],[11,3,11,18],[1,3,1,6],[1,7,1,10],[1,11,1,14],[1,15,1,18],[2,3,2,6],[2,7,2,10],[2,11,2,14],[2,15,2,18]]}
[null,null,","]
[null,null,null,"Bloc",null,null,null,"Bloc d'instance",null,null,null,"Bloc de données",null,null,null,"Zone"]
[null,null,null,"FC1825",null,null,null,"DB1825",null,null,null,"DB6825"]
[null,null,","]
[null,null,null,"& Objet"]
[null,null,null,"Description sommaire de la fonction"]
[]
[null,null,",","SIP R1005 : Chasse des incondensables, montée en température et stabilisation"]
[]
[null,null,","]
[null,null,null,"¤ Mode opératoire"]
[null,null,null,"Description des commandes et des moyens de conduite associés à la fonction"]
[]
[null,null,null,"Fonction démarrée en séquence ou en automatique ou en semi automatique"]
[]
[null,null,","]
[null,null,null,"6 Séquence"]
[null,null,null,"Description du séquençage de la fonction d’une manière littérale sans référence aux items des capteurs et actionneurs"]
[]
[null,null,null,"Gestion des vannes auto"]
[null,null,null,"SIP par message opérateur"]
[null,null,null,"Régulation de la vapeur avec la SFI"]
[]
[null,null,","]
[null,null,null,"¤ Conditions initiales"]
[null,null,null,"Liste des conditions matérielles (capteur, pontage, sécurité, état sanitaire,…) interdisant le lancement de la fonction",null,null,null,null,null,null,null,null,null,null,null,null,null,"SIM / FAT / SAT",null,"CARACTERES_MAX"]
[null,null,null,"Numéro",null,"Affichage en supervision sur absence CI",null,null,null,null,null,null,null,null,null,null,null,"C/NC/NA","VISA",50]
[null,null,null,1,null,"Fonctions demandées et en cours incompatibles",null,null,null,null,null,null,null,null,null,null,null,null,null,{"$f":"LEN(F28)","v":45}]
[null,null,null,2,null,"Défaut en cours",null,null,null,null,null,null,null,null,null,null,null,null,null,15]
[null,null,null,3,null,"Système FVIII en mode rouge",null,null,null,null,null,null,null,null,null,null,null,null,null,27]
[null,null,null,4,null,"Système R1005 en mode rouge",null,null,null,null,null,null,null,null,null,null,null,null,null,27]
[null,null,null,5,null,"Test d'étanchéité non conforme",null,null,null,null,null,null,null,null,null,null,null,null,null,30]
[null,null,null,6,null,"Cuve R1005 non vide",null,null,null,null,null,null,null,null,null,null,null,null,null,19]
[null,null,null,7,null,"Trou d'homme mal positionné",null,null,null,null,null,null,null,null,null,null,null,null,null,27]
[]
[null,null,","]
[null,null,null,"¤ Conditions permanentes"]
[null,null,null,"Liste des défauts associés à la fonction",null,null,null,null,null,null,null,null,null,null,null,null,null,"SIM / FAT / SAT"]
[null,null,null,"Numéro",null,"Libellé défaut",null,null,null,null,null,null,null,null,null,null,null,"C/NC/NA","VISA"]
[null,null,null,1,null,"Défaut organes"]
[null,null,null,2,null,"Défaut échanges"]
[null,null,null,3,null,"Défaut process"]
[]
[null,null,","]
[null,null,null,"¤ Message opérateur"]
[null,null,null,"Liste des messages opérateur associés à la fonction",null,null,null,null,null,null,null,null,null,null,null,null,null,"SIM / FAT / SAT",null,"CARACTERES_MAX"]
[null,null,null,"Numéro",null,"Affichage en supervision",null,null,null,null,null,null,null,null,null,null,null,"C/NC/NA","VISA",90]
[null,null,null,"N/A",null,"N/A",null,null,null,null,null,null,null,null,null,null,null,null,null,{"$f":"LEN(F48)","v":3}]
[]
[null,null,","]
[null,null,null,"¤ Paramètres associés"]
[null,null,null,"Liste des paramètres associés à la fonction"]
[null,null,null,"Consignes opérateur : Paramètres numériques accessibles à des opérateurs de production"]
[null,null,null,"• Choix opérateur : Sélections binaires accessibles à des opérateurs de production"]
[null,null,null,"• Consignes de réglage : Paramètres numériques accessibles à des opérateurs de maintenance",null,null,null,null,null,null,null,null,null,null,null,null,null,"SIM / FAT / SAT",null,"CARACTERES_MAX"]
[null,null,null,"Consigne opérateur",null,"Gamme",null,"Unité (virgule)","Description",null,null,null,null,null,null,"Valeur en fin de MES",null,"C/NC/NA","VISA",40,"A\nA"]
[null,null,null,null,null,null,null,null,null,null,null,null,null,null,null,null,null,null,null,{"$f":"LEN(I57)","v":0}]
[null,null,null,null,null,null,null,null,null,null,null,null,null,null,null,null,null,null,null,0]
[null,null,null,"CONS_01",null,"-1/6",null,"bar(2)","Pression de stérilisation",null,null,null,null,null,null,"N/A",null,null,null,25]
[null,null,null,"CONS_02",null,"0/9999",null,"s(0)","Temps de stérilisation",null,null,null,null,null,null,"N/A",null,null,null,22]
[null,null,null,"CONS_03",null,"0/150",null,"°C(2)","Température maximum de stérilisation",null,null,null,null,null,null,"N/A",null,null,null,36]
[null,null,null,"CONS_04",null,"0/150",null,"°C(2)","Température minimum de stérilisation",null,null,null,null,null,null,"N/A",null,null,null,36]
[null,null,null,"CONS_05",null,"-1/6",null,"bar(2)","Pression maximum de stérilisation",null,null,null,null,null,null,"N/A",null,null,null,33]
[null,null,null,"CONS_06",null,"-1/6",null,"bar(2)","Pression minimum de stérilisation",null,null,null,null,null,null,"N/A",null,null,null,33]
[null,null,null,"Choix opérateur",null,"Description",null,null,null,null,null,null,null,null,null,"Valeur en fin de MES",null,null,null,null,"A\nA"]
[null,null,null,null,null,null,null,null,null,null,null,null,null,null,null,null,null,null,null,{"$f":"LEN(F66)","v":0}]
[null,null,null,null,null,null,null,null,null,null,null,null,null,null,null,null,null,null,null,{"$f":"LEN(F67)","v":0}]
[null,null,null,"N/A",null,"N/A",null,null,null,null,null,null,null,null,null,"N/A",null,null,null,{"$f":"LEN(F68)","v":3}]
[null,null,null,"Consigne de réglage",null,"Gamme",null,"Unité (virgule)","Description",null,null,null,null,null,null,"Valeur en fin de MES",null,null,null,null,"A\nA"]
[null,null,null,null,null,null,null,null,null,null,null,null,null,null,null,null,null,null,null,{"$f":"LEN(I70)","v":0}]
[]
[null,null,null,"PARAM_01",null,"0/150",null,"°C(2)","Température de stabilisation",null,null,null,null,null,null,null,null,null,null,{"$f":"LEN(I72)","v":28}]
[null,null,null,"PARAM_02",null,"0/9999",null,"s(0)","Temps de stabilisation",null,null,null,null,null,null,null,null,null,null,{"$f":"LEN(I73)","v":22}]
[null,null,null,"PARAM_03",null,"0/9999",null,"-(0)","Nombre max de RAZ",null,null,null,null,null,null,null,null,null,null,17]
[null,null,null,"PARAM_04",null,"0/9999",null,"s(0)","Temps battement circuit A",null,null,null,null,null,null,null,null,null,null,25]
[null,null,null,"PARAM_05",null,"0/9999",null,"s(0)","Temps battement circuit B",null,null,null,null,null,null,null,null,null,null,25]
[null,null,null,"PARAM_06",null,"0/150",null,"°C(2)","Seuil très haut température ",null,null,null,null,null,null,null,null,null,null,28]
[null,null,null,"PARAM_07",null,"0/150",null,"°C(2)","Seuil très bas température ",null,null,null,null,null,null,null,null,null,null,27]
[null,null,null,"PARAM_08",null,"-1/6",null,"bar(2)","Seuil très haut pression cuve",null,null,null,null,null,null,null,null,null,null,29]
[null,null,null,"PARAM_09",null,"-1/6",null,"bar(2)","Seuil très bas pression cuve"]
[]
[null,null,","]
[null,null,null," Informations associées"]
[null,null,null,"Listes des informations numériques associées à la fonction",null,null,null,null,null,null,null,null,null,null,null,null,null,"SIM / FAT / SAT",null,"CARACTERES_MAX"]
[null,null,null,"Numérique",null,"Unité (virgule)","Description",null,null,null,null,null,null,null,null,null,null,"C/NC/NA","VISA",40]
[null,null,null,"MESURE_01",null,"°C(2)","Température fond de cuve R1005",null,null,null,null,null,null,null,null,null,null,null,null,{"$f":"LEN(G86)","v":30}]
[null,null,null,"MESURE_02",null,"°C(2)","Température purge filtre évent R1005",null,null,null,null,null,null,null,null,null,null,null,null,{"$f":"LEN(G87)","v":36}]
[null,null,null,"MESURE_03",null,"°C(2)","Température purge fond de cuve",null,null,null,null,null,null,null,null,null,null,null,null,30]
[null,null,null,"MESURE_04",null,"bar(2)","Pression cuve",null,null,null,null,null,null,null,null,null,null,null,null,13]
[null,null,null,"MESURE_05",null,"-(0)","Nombre de RAZ en cours",null,null,null,null,null,null,null,null,null,null,null,null,22]
[null,null,null,"MESURE_06",null,"s(0)","Temps de stabilisation en cours",null,null,null,null,null,null,null,null,null,null,null,null,31]
[null,null,null,"MESURE_07",null,"s(0)","Temps de stérilisation en cours",null,null,null,null,null,null,null,null,null,null,null,null,31]
[]
[null,null,","]
[null,null,null," Régulation/Asservissement"]
[null,null,null,"Liste des régulations/asservissements liés à la fonction",null,null,null,null,null,null,null,null,null,null,"Valeur en fin de MES",null,null,"SIM / FAT / SAT"]
[null,null,null,"Equipement",null,"Type","Mesure",null,"Action",null,"Commentaires",null,null,null,"P","I","D","C/NC/NA","VISA"]
[null,null,null,"1001_04_PIC_20",null,"PID","1001_04_PIT_20",null,"1001_04_XV_01",null,"Régulation TOR pour stérilisation"]
[]
[null,null,","]
[null,null,null," Fonctions activées"]
[null,null,null,"Liste des autres fonctions activées par la fonction",null,null,null,null,null,null,null,null,null,null,null,null,null,"SIM / FAT / SAT"]
[null,null,null,"Fonction",null,"Description",null,null,null,null,null,null,null,null,null,null,null,"C/NC/NA","VISA"]
[null,null,null,"N/A",null,"N/A"]
[]
[null,null,","]
[null,null,null," Traitements spécifiques"]
[null,null,null,"Liste des traitements spécifiques de la fonction",null,null,null,null,null,null,null,null,null,null,null,null,null,"SIM / FAT / SAT"]
[null,null,null,"Evènement",null,null,null,null,null,"Action",null,null,null,null,null,null,null,"C/NC/NA","VISA"]
[null,null,null,"CONS_04 <= MESURE_01 ET MESURE_02 ET MESURE_03 <= CONS_03",null,null,null,null,null,"Validation des défauts organes 1001_04_TT_20 / 1001_04_TT_30 / 1001_04_TT_40 ET seuil HH = PARAM_06 ET seuil LL = PARAM_07"]
[null,null,null,"FCT_1001_412 en Pause OU Inactive",null,null,null,null,null,"Dévalidation des défauts organes 1001_04_TT_20 / 1001_04_TT_30 / 1001_04_TT_40"]
[null,null,null,"CONS_06 <= MESURE_04 <= CONS_05",null,null,null,null,null,"Validation du défaut organe 1001_04_PIT_20 ET seuil HH = PARAM_08 ET seuil LL = PARAM_09"]
[null,null,null,"FCT_1001_412 en Pause OU Inactive",null,null,null,null,null,"Dévalidation du défaut organe 1001_04_PIT_20"]
[null,null,null,"X03",null,null,null,null,null,"RAZ FCT_1001_410.MemoNombreCIP"]
[null,null,null,"1001_04_WT_20 > Param_eq4 \nOU Défaut CMS 1001_04_WT_20 ",null,null,null,null,null,"Cuve R1005 non vide"]
[null,null,null,"/1001_04_ZS_21",null,null,null,null,null,"Trou d'homme mal positionné"]
[]
[null,null,","]
[null,null,null,"2 Temporisations de la fonction"]
[null,null,null,"Liste des temporisations utilisées dans la fonction",null,null,null,null,null,null,null,null,null,null,null,null,null,"SIM / FAT / SAT"]
[null,null,null,"Consigne / Paramètre",null,null,"Réaction aux défauts",null,null,"Conditions de pause",null,null,null,"Conditions de reset",null,null,null,"C/NC/NA","VISA"]
[null,null,null,"CONS_02",null,null,"reset",null,null,"N/A",null,null,null,"N/A"]
[null,null,null,"PARAM_02",null,null,"reset",null,null,"N/A",null,null,null,"N/A"]
[]
[null,null,","]
[null,null,null,"2 Critères de la fonction"]
[null,null,null,"Critères de fonction pour la traçabilité ( 5 critères max)\nLes mesures possédant une option seront traçées si l'option est à 1. Celles qui n'en ont pas seront tracées dans tous les cas.",null,null,null,null,null,null,null,null,null,null,null,null,null,"SIM / FAT / SAT",null,"CARACTERES_MAX"]
[null,null,null,"Mesure",null,"Paramètre/Consigne Min",null,null,"Paramètre/Consigne Max",null,null,"Libellé du critère",null,null,null,null,"Option","C/NC/NA","VISA",30]
[null,null,null,"MESURE_04",null,"N/A",null,null,"N/A",null,null,"Medida pressão tanque",null,null,null,null,"N/A",null,null,{"$f":"LEN(G129)","v":0}]
[]
[null,null,","]
[null,null,null,"4 Mot de traçabilité de la fonction"]
[null,null,null,"Mot de traçabilité de la fonction",null,null,null,null,null,null,null,null,null,null,null,null,null,"SIM / FAT / SAT",null,"CARACTERES_MAX"]
[null,null,null,"Numéro de traçabilité",null,"Etape de grafcet/condition",null,"Libellé de la traçabilité",null,null,null,null,null,null,null,null,null,"C/NC/NA","VISA",50,"A\nA"]
[null,null,null,2,null,2,null,"Aquecimento e estabilização",null,null,null,null,null,null,null,null,null,null,null,{"$f":"LEN(H135)","v":27}]
[null,null,null,3,null,3,null,"Regulação de pressão e esterilização",null,null,null,null,null,null,null,null,null,null,null,{"$f":"LEN(H136)","v":36}]
[null,null,null,"100 à 105",null,null,null,"Traçabilité des états de la fonction",null,null,null,null,null,null,null,null,null,null,null,{"$f":"LEN(H137)","v":36}]
[]
[]
[null,null,",",null,null,null,null,null,null,null,null,null,null,null,null,null,null,null,null,null,null,null,null,null,"Codage automatique des transitions"]
[null,null,null,"2 Etapes de la fonction",null,null,null,null,null,null,null,null,null,null,null,null,null,null,null,null,null,null,null,null,"On passe à l'étape (↓) depuis l'étape (→) avec la \"condition\" "]
[null,null,null,"Numéro et libellé des étapes de la fonction (64 étapes max)",null,null,null,null,null,null,null,null,null,null,null,null,null,"SIM / FAT / SAT",null,"CARACTERES_MAX",null,null,null,null,"Numero","00","01","02","03","63"]
[null,null,null,"Numéro étape",null,"Libellé de l'étape",null,null,null,null,null,null,null,null,null,null,null,"C/NC/NA","VISA",40,null,null,null,null,"00",null,null,null,null,"X"]
[null,null,null,1,null,"Vérification des conditions initiales",null,null,null,null,null,null,null,null,null,null,null,null,null,{"$f":"LEN(F144)","v":37},null,null,null,null,"01","X"]
[null,null,null,2,null,"Chauffe et stabilisation",null,null,null,null,null,null,null,null,null,null,null,null,null,{"$f":"LEN(F145)","v":24},null,null,null,null,"02",null,"X"]
[null,null,null,3,null,"Régulation de pression et stérilisation",null,null,null,null,null,null,null,null,null,null,null,null,null,{"$f":"LEN(F146)","v":39},null,null,null,null,"03",null,null,"X"]
[null,null,null,null,null,null,null,null,null,null,null,null,null,null,null,null,null,null,null,null,null,null,null,null,"63",null,null,null,"X"]
[null,null,","]
[null,null,","]
[null,null,","]
[null,null,null,"4 Description de la fonction",null,null,null,null,null,null,null,null,null,null,null,null,null,null,null,null,null,null,null,null,null,null,null,null,null,null,null,null,null,null,null,null,"SIM / FAT / SAT"]
[null,null,null,"Description de la fonction sous forme de grafcets, logigrammes, littérale…",null,null,null,null,null,null,null,null,null,null,null,null,null,null,null,null,null,null,null,null,null,null,null,null,null,null,null,null,null,null,null,null,"C/NC/NA","VISA"]
[null,null,","]
[null,null,","]
[null,null,","]
[null,null,","]
[null,null,","]
[null,null,","]
[null,null,","]
[null,null,","]
[null,null,","]
[null,null,","]
[null,null,","]
[null,null,","]
[null,null,","]
[null,null,","]
[null,null,","]
[null,null,","]
[null,null,","]
[null,null,","]
[null,null,","]
[null,null,","]
[null,null,","]
[null,null,","]
[null,null,","]
[null,null,","]
[null,null,","]
[null,null,","]
[null,null,","]
[null,null,","]
[null,null,","]
[null,null,","]
[null,null,","]
[null,null,","]
[null,null,","]
[null,null,","]
[null,null,","]
[null,null,","]
[null,null,","]
[null,null,","]
[null,null,","]
[null,null,","]
[null,null,","]
[null,null,","]
[null,null,","]
[null,null,","]
[null,null,","]
[null,null,","]
[null,null,","]
[null,null,","]
[null,null,","]
[null,null,","]
[null,null,","]
[null,null,","]
[null,null,","]
[null,null,","]
[null,null,","]
[null,null,","]
[null,null,","]
[null,null,","]
[null,null,","]
[null,null,","]
[null,null,","]
[null,null,","]
[null,null,","]
[null,null,","]
[null,null,","]
[null,null,","]
[null,null,","]
[null,null,","]
[null,null,","]
[null,null,","]
[null,null,","]
[null,null,","]
[null,null,","]
[null,null,","]
[null,null,","]
[null,null,null,"G Commentaires"]
[null,null,null,"Commentaires identifiés durant le test de la fonction"]
[]
[]
[]
[]
[]
[]
[]
[]
[]
[]
[]
[null,null,null,"G Approbation du test",null,null,null,null,null,null,null,null,null,null,"FCT_1001_412"]
[null,null,null,"Approbation de test"]
[null,null,null,"Statut du test",null,null,null,null,null,null,"CONFORME / NON CONFORME"]
[null,null,null,"En cas de non-conformité, écrire la référence de la non-conformité",null,null,null,null,null,null,"N° ",null,null,null,null,null,null,null,null,"A\nA"]
[null,null,null,"Vérifié par (VISA)",null,null,null,null,null,null,"Approuvé par (VISA)"]
[null,null,null,"Date :",null,null,null,null,null,null,"Date :"]
[null,null,","]
[null,null,","]
[null,null,null,"2 Battements"]
[]
[null,null,null,"Battement CIP",null,null,null,null,null,null,null,null,null,null,null,null,null,null,null,null,"SIM / FAT / SAT"]
[null,null,null,"Circuit / Pulse","XV02","XV04","XV05",null,null,null,"Temps recouvrement","Temps mise en charge","Ordre exécution","Csg de temps","Nbre itération","Nbre de pulse","Temps pulse ON","Temps pulse OFF","Transition sur événement","Evénement","C/NC/NA","VISA"]
[null,null,null,"Mise en charge",null,null,null,null,null,null,2,0,null,null,null,null,null,null,null,null,null,null,"A\nA"]
[null,null,null,"A",null,null,"X",null,null,null,null,null,1,"PARAM_04",0,"N/A","N/A","N/A","N/A","N/A",null,null,"A\nA"]
[null,null,null,"B","X","X",null,null,null,null,null,null,2,"PARAM_05",0,"N/A","N/A","N/A","N/A","N/A",null,null,"A\nA"]
[]
[null,null,","]
[null,null,null,"G Commentaires"]
[null,null,null,"Commentaires identifiés durant le test de la fonction"]
[null,null,null,"L'agitateur AG20 n'est pas actif pendant la pousse à l'air aller OU si (OPT_01 ET Fluide en cours : HPW OU OPT_02 ET Fluide en cours : CPW OU OPT_03 ET Fluide en cours : DW OU OPT_04 ET Fluide en cours : WFI OU OPT_05 ET Fluide en cours : HNA OU OPT_06 ET Fluide en cours : HNO). \n\n- * : Temps de pulse OFF, voir traitements spécifiques. Ceci est prévu pour avoir un seul cycle de pulse par circuit.\n\n- Le PARAM_09 identifie le nombre de pulse qui vont successivement s'enchainer :\n                             - Si vous indiquez 0, il n'y aura pas de pulse sur le circuit,\n                             - Si vous indiquez moins de pulse, seul les premières pulses paramétrées seront executées et le temps pulse OFF sera recalculé,\n                             - Si vous paramétrez plus de pulses cela recalculera le temps pulse OFF et ajoutera un temps pulse ON et un OFF."]